[Event "XII Cracow ICC-A 2024"]
[Site "Krakow"]
[Date "2024.06.26"]
[Round "6.16"]
[White "Gorkiewicz, Mateusz"]
[Black "Dziewonski, Dariusz"]
[Result "1-0"]
[ECO "C54"]
[WhiteElo "2223"]
[BlackElo "2293"]
[Annotator "RC"]
[PlyCount "125"]
[EventDate "2024.06.20"]
[EventType "swiss"]
[EventCountry "POL"]
[SourceTitle "playchess.com"]
[Source "ChessBase"]
[SourceQuality "1"]
[TimeControl "40/5400+30:1800+30"]

1. e4 {[%emt 0:00:02]} e5 {[%emt 0:00:52]} 2. Nf3 {[%emt 0:00:13]} Nc6 {[%emt 0:00:07]} 3. Bc4 {[%emt 0:00:14]} Bc5 {[%emt 0:00:08]} 4. c3 {[%emt 0:00:13]} Nf6 {[%emt 0:00:08]} 5. d4 {[%emt 0:00:25]} exd4 {[%emt 0:02:50]} 6. b4 {[%emt 0:00:19]} Bb6 {[%emt 0:01:26]} 7. e5 {[%emt 0:00:17]} Ne4 {[%emt 0:01:10]} 8. Bd5 {[%emt 0:00:58]} Nxf2 {[%emt 0:07:53]} 9. Kxf2 {[%emt 0:15:48]} dxc3+ {[%emt 0:00:23]} 10. Kg3 {[%emt 0:03:40]} Qe7 {[%emt 0:11:13]} 11. Re1 {[%emt 0:28:56]} Nxb4 {[%emt 0:16:37]} 12. Nxc3 {[%emt 0:08:22]} Qc5 {[%emt 0:03:52]} 13. Bxf7+ {[%emt 0:12:15]} Kxf7 {[%emt 0:01:40]} 14. Qb3+ {[%emt 0:01:54]} d5 {[%emt 0:15:58]} 15. exd6+ {[%emt 0:01:39]} Kf8 {[%emt 0:01:56]} 16. Ne4 {[%emt 0:02:44]} Qf5 {[%emt 0:04:04]} 17. d7 {[%emt 0:06:12]} Bxd7 {[%emt 0:01:36]} 18. Qxb4+ {[%emt 0:02:42]} c5 {[%emt 0:00:09]} 19. Qd2 {[%emt 0:01:23]} Bc7+ {[%emt 0:13:44]} 20. Kf2 {[%emt 0:00:11]} Bc6 {[%emt 0:06:59]} 21. Ng3 {[%emt 0:05:54]} Qf7 {[%emt 0:00:26]} 22. Ba3 {[%emt 0:00:44]} b6 {[%emt 0:00:10]} 23. Kg1 {[%emt 0:01:49]} Rd8 {[%emt 0:01:41]} 24. Qc2 {[%emt 0:00:51]} Kg8 {[%emt 0:02:20]} 25. Ng5 {[%emt 0:00:41]} Qf6 {[%emt 0:02:24]} 26. Ne6 {[%emt 0:01:52]} Bxg3 {[%emt 0:01:36]} 27. hxg3 {[%emt 0:01:14]} Rd6 {[%emt 0:00:15]} 28. Bb2 {[%emt 0:01:12]} Qg6 {[%emt 0:00:04]} 29. Qc3 {[%emt 0:01:22]} h5 {[%emt 0:01:20]} 30. Nf4 {[%emt 0:00:33]} Qg4 {[%emt 0:00:20]} 31. Qc4+ {[%emt 0:00:27]} Kf8 {[%emt 0:01:44]} 32. Ne6+ {[%emt 0:00:24]} Kg8 {[%emt 0:00:21]} 33. Nf4+ {[%emt 0:00:20]} Kf8 {[%emt 0:00:03]} 34. Rf1 {[%emt 0:00:50]} Ke8 {[%emt 0:00:45]} 35. Rae1+ {[%emt 0:00:13]} Kd8 {[%emt 0:00:04]} 36. Be5 {[%emt 0:00:48]} Rd2 {[%emt 0:00:30]} 37. Qf7 {[%emt 0:00:38]} Rd7 {[%emt 0:00:48]} 38. Qe6 {[%emt 0:00:36]} Qxe6 {[%emt 0:01:15]} 39. Nxe6+ {[%emt 0:00:04]} Kc8 {[%emt 0:00:08]} 40. Nxg7 {[%emt 0:00:44]} Rh7 {[%emt 0:00:45]} 41. Rf8+ {[%emt 0:10:50]} Kb7 {[%emt 0:03:42]} 42. Ne6 {[%emt 0:00:56]} Ka6 {[%emt 0:03:25]} 43. Rf6 {[%emt 0:10:09]} Rd2 {[%emt 0:00:53]} 44. Nxc5+ {[%emt 0:02:15]} Kb5 {[%emt 0:00:04]} 45. Nb3 {[%emt 0:03:03]} Rxg2+ {[%emt 0:02:04]} 46. Kf1 {[%emt 0:00:05]} Ba8 {[%emt 0:04:24]} 47. Nd4+ {[%emt 0:01:45]} Ka6 {[%emt 0:04:59]} 48. Re2 {[%emt 0:02:13]} Rxe2 {[%emt 0:01:58]} 49. Nxe2 {[%emt 0:00:30]} h4 {[%emt 0:00:21]} 50. g4 {[%emt 0:00:38]} h3 {[%emt 0:01:20]} 51. Bh2 {[%emt 0:02:04]} Bd5 {[%emt 0:06:40]} 52. Nc3 {[%emt 0:00:05]} Bg2+ {[%emt 0:01:13]} 53. Kf2 {[%emt 0:00:04]} Rd7 {[%emt 0:00:22]} 54. Ke3 {[%emt 0:02:11]} Re7+ {[%emt 0:00:14]} 55. Kf2 {[%emt 0:00:38]} Rd7 {[%emt 0:00:04]} 56. g5 {[%emt 0:00:26]} Rd2+ {[%emt 0:00:45]} 57. Ke3 {[%emt 0:00:06]} Rc2 {[%emt 0:00:23]} 58. Kd3 {[%emt 0:01:11]} Rb2 {[%emt 0:03:46]} 59. g6 {[%emt 0:00:15]} Bf1+ {[%emt 0:00:34]} 60. Rxf1 {[%emt 0:00:14]} Rxh2 {[%emt 0:00:02]} 61. Ke4 {[%emt 0:00:58]} Rc2 {[%emt 0:00:46]} 62. Nd5 {[%emt 0:00:10]} Rxa2 {[%emt 0:02:28]} 63. Nb4+ {[%emt 0:00:07]} 1-0

[Event "XII Cracow ICC-A 2024"]
[Site "Krakow"]
[Date "2024.06.26"]
[Round "6.17"]
[White "Panjer, Sidney"]
[Black "Chatalbashev, Boris"]
[Result "1/2-1/2"]
[ECO "A41"]
[WhiteElo "2185"]
[BlackElo "2483"]
[Annotator "TA"]
[PlyCount "129"]
[EventDate "2024.06.20"]
[EventType "swiss"]
[EventCountry "POL"]
[SourceTitle "playchess.com"]
[Source "ChessBase"]
[SourceQuality "1"]
[TimeControl "40/5400+30:1800+30"]

{[%evp 49,129,72,88,82,81,8,0,-177,-186,-176,-172,-172,-172,-264,0,0,0,0,438,423,341,395,372,76,78,78,85,16,16,0,0,-20,-20,-38,-71,-80,-15,-15,-15,-15,-15,-15,-15,-15,-15,-15,-15,-15,-15,-15,0,0,0,0,0,0,0,0,0,0,0,-8,-8,-11,-8,-8,0,-11,-11,-11,-11,-11,-11,-11,-11,-11,0,-11,0,0,0,-11]} 1. d4 {[%emt 0:02:47]} d6 {[%emt 0:00:57]} 2. Nf3 {[%emt 0:00:06]} Bg4 {[%emt 0:00:13]} 3. g3 {[%emt 0:05:41]} Bxf3 {[%emt 0:00:09]} 4. exf3 {[%emt 0:00:02]} d5 {[%emt 0:01:50]} 5. Bd3 {[%emt 0:06:33]} e6 {[%emt 0:00:23]} 6. Be3 {[%emt 0:01:57] A41: 1 d4 d6: Tartakower System and Modern Defence.} Ne7 $146 {[%emt 0:00:26]} ({Predecessor:} 6... g6 7. Nd2 Bg7 8. f4 c5 9. Nf3 Nc6 10. dxc5 d4 11. Bd2 Qd5 12. b4 a5 13. bxa5 {½-½ Giannoulakis,L (2355)-Maier,C (2390) GRE-chT 45th 2017 (7.7)}) 7. a4 {[%emt 0:05:08]} g6 {[%emt 0:05:37]} 8. c3 {[%emt 0:04:51]} Bg7 {[%emt 0:00:08]} 9. a5 {[%emt 0:01:50]} O-O {[%emt 0:02:08]} 10. Nd2 {[%emt 0:01:17]} Nd7 {[%emt 0:04:01]} 11. h4 {[%emt 0:07:32]} e5 {[%emt 0:10:19]} 12. dxe5 {[%emt 0:05:58]} Nxe5 {[%emt 0:00:07]} 13. Bc2 {[%emt 0:00:12]} Qd7 {[%emt 0:05:08]} 14. Kf1 {[%emt 0:05:30]} Nf5 {[%emt 0:11:30]} 15. Bxf5 {[%emt 0:04:37]} Qxf5 {[%emt 0:00:16]} 16. Kg2 {[%emt 0:00:02]} b6 {[%emt 0:00:56]} 17. Qb3 {[%emt 0:01:06]} Nd3 {[%emt 0:07:36]} 18. Ra4 {[%emt 0:03:59]} Rfe8 {[%emt 0:12:08]} 19. axb6 {[%emt 0:09:14]} axb6 {[%emt 0:00:24]} 20. Qb5 {[%emt 0:00:19]} Rad8 {[%emt 0:05:10]} 21. Ra7 {[%emt 0:03:53]} Be5 {[%emt 0:03:09]} 22. Rha1 {[%emt 0:02:55]} Bd6 {[%emt 0:04:19]} 23. Nb3 {[%emt 0:03:41]} c5 {[%emt 0:07:43]} 24. Qxb6 {[%emt 0:01:43]} Nxb2 {[%emt 0:00:42]} 25. Na5 {[%emt 0:02:56]} (25. Nxc5 $2 Nc4 26. Qb1 Nxe3+ 27. fxe3 $19) 25... Nd3 {[%emt 0:10:47]} 26. Nb7 {[%emt 0:01:16]} Bb8 {[%emt 0:00:57]} 27. R7a4 {[%emt 0:09:37]} (27. Nxd8 $16 Bxa7 28. Qxa7 (28. Rxa7 Ne1+ 29. Kf1 Nc2 $11) 28... Rxd8 29. Qe7 (29. Bxc5 Ne5 $11)) 27... Rc8 $1 $11 {[%emt 0:00:48]} 28. Nxc5 $2 {[%emt 0:01:16]} (28. Bxc5 $2 Ne1+ 29. Rxe1 Rxe1 $19) (28. Nd6 $1 $11 Bxd6 29. Qxd6) 28... Rxe3 $1 $19 {[%emt 0:00:36]} 29. fxe3 {[%emt 0:00:43]} Nxc5 {[%emt 0:00:06]} 30. Ra8 {[%emt 0:01:18]} Qc2+ {[%emt 0:01:18]} 31. Kh1 {[%emt 0:02:36] [#]} (31. Kh3 $142 Nd7 (31... Qxc3 $2 32. Rxb8 Nd7 33. Rxc8+ Qxc8 34. Qb2 $18) 32. Qb7 Qf5+ (32... Rxc3 $2 33. Qxd7 Kg7 34. Rxb8 $18) 33. Kg2) 31... Bxg3 $2 {[%emt 0:01:13]} (31... Qxc3 $1 $19 {...Kg7 would now be deadly.} 32. Rb1 Nd7) 32. R1a2 $1 $11 {[%emt 0:00:55]} (32. Rxc8+ Kg7) 32... Qf5 {[%emt 0:01:03]} (32... Qxc3 $2 33. Rxc8+ Kg7 34. Qxc5 $18 (34. Qb2 Qxb2 35. Rxb2 Ne6 $18)) 33. Kg2 {[%emt 0:03:00]} Bxh4 $2 {[%emt 0:02:28][%mdl 8192]} (33... Ne4 $1 $11) 34. Qxc5 $18 {[%emt 0:00:42]} Qg5+ {[%emt 0:00:17]} 35. Kf1 {[%emt 0:00:51]} Rd8 {[%emt 0:00:15]} 36. Qc7 $2 {[%emt 0:01:52]} (36. Qd4 $18 {has better winning chances.}) 36... Rxa8 $16 {[%emt 0:00:54]} 37. Rxa8+ {[%emt 0:00:01]} Kg7 {[%emt 0:00:06]} 38. Ra7 {[%emt 0:01:02]} (38. Re8 $16) 38... Qf5 $1 $11 {[%emt 0:00:33]} 39. Qf4 {[%emt 0:00:30]} Qd3+ {[%emt 0:00:54]} 40. Kg1 {[%emt 0:00:31]} Bf6 {[%emt 0:00:33]} 41. Kg2 {[%emt 0:06:50]} Qe2+ {[%emt 0:06:32]} (41... Bxc3 42. Qxf7+ (42. Rxf7+ Kg8 $11) 42... Kh6 43. Qxh7+ (43. Qf4+ g5 44. Qh2+ Kg6 45. Qxh7+ Kf6 46. Qxd3 Bb4 47. Qd4+ Ke6 48. Qxb4 Ke5 49. Ra6 Kf5 50. Qg4+ Ke5 51. Qxg5#) 43... Kg5 44. f4+ Kf5 45. Qd7+ Ke4 46. Qe6+) 42. Kg1 {[%emt 0:07:39]} g5 {[%emt 0:08:04]} (42... Bxc3 43. Qxf7+ (43. Rxf7+ Kg8 $11) 43... Kh6 44. Qf4+ (44. Qxd5 $2 Qxe3+ 45. Kf1 Qxa7 $19) 44... g5 45. Qd6+) (42... Qe1+ $17 43. Kg2 Qe2+ (43... Qxc3 44. Qc7 $11) 44. Kg1 Qd1+ (44... Bxc3 45. Qxf7+ Kh6 46. Qf4+ g5 47. Qd6+) 45. Kg2 Qc2+ (45... Bxc3 46. Qxf7+ Kh6 47. Qf4+ g5 48. Qf8+ Kh5 49. Rxh7+ Kg6 50. Rh6#) 46. Kh1 h5 (46... Bxc3 47. Qxf7+ Kh6 48. Qf8+) (46... Qxc3 47. Qc7 $11)) 43. Qc7 $11 {[%emt 0:00:08]} Qxe3+ {[%emt 0:00:18]} (43... Qxf3 44. Qxf7+ Kh8 45. Qxh7#) 44. Kg2 {[%emt 0:00:10]} Qe2+ {[%emt 0:00:35]} (44... Qxc3 45. Qxf7+ Kh8 46. Qxh7#) 45. Kg1 {[%emt 0:01:42]} Qd1+ {[%emt 0:01:19]} (45... Qxf3 46. Qxf7+ Kh8 47. Qxh7#) (45... Qe6 {simplifies} 46. Qd7 Qxd7 47. Rxd7 Bxc3 48. Rxd5 f6) 46. Kg2 {[%emt 0:01:02]} Qc2+ {[%emt 0:00:26]} 47. Kh1 {[%emt 0:00:42]} Qg6 {[%emt 0:00:37]} (47... Bxc3 48. Qxf7+ Kh6 49. Qe6+ (49. Qxd5 Qc1+ 50. Kg2 Qd2+ 51. Qxd2 Bxd2 $16) 49... Qg6 50. Qh3+ (50. Qxd5 Bf6 $16) 50... Qh5 51. Ra6+ (51. Rxh7+ Kxh7 52. Qxh5+ Kg8 53. Qxg5+ Kf8 54. Qd8+ Kg7 55. Qxd5 Kh7 56. Qd3+ Kh6) (51. Rxh7+ Kxh7 52. Qxh5+ Kg8 53. Qxg5+ Kf8 54. Qd8+ Kf7 55. Qxd5+ Kg7)) 48. Qd7 {[%emt 0:01:03]} Bxc3 {[%emt 0:08:42]} 49. Qxd5 {[%emt 0:00:08]} h5 {[%emt 0:00:47]} 50. Rb7 {[%emt 0:02:44]} g4 {[%emt 0:02:36]} 51. Rb5 {[%emt 0:01:37]} g3 {[%emt 0:03:52]} 52. Qg5 {[%emt 0:00:26]} Bf6 {[%emt 0:00:43]} 53. Qxg6+ {[%emt 0:00:13]} fxg6 {[%emt 0:00:02]} 54. Kg2 {[%emt 0:00:17]} h4 {[%emt 0:00:02]} 55. Rb1 {[%emt 0:00:59]} g5 {[%emt 0:00:16]} 56. Kh3 {[%emt 0:00:24]} Kg6 {[%emt 0:00:38]} 57. Rb5 {[%emt 0:00:23]} Bd4 {[%emt 0:00:10]} 58. Rd5 {[%emt 0:00:28]} Be3 {[%emt 0:00:06]} 59. Re5 {[%emt 0:00:31]} Bf4 {[%emt 0:00:08]} 60. Rb5 $1 {[%emt 0:00:14]} Kf6 {[%emt 0:00:07]} 61. Kg2 {[%emt 0:00:58]} Be5 {[%emt 0:00:13]} 62. Ra5 $1 {[%emt 0:06:35]} Kf5 {[%emt 0:00:09]} 63. Rb5 {[%emt 0:00:34]} Kf4 {[%emt 0:00:14]} 64. Rb4+ {[%emt 0:00:07]} Kf5 {[%emt 0:00:03]} 65. Rb5 {[%emt 0:00:05]} 1/2-1/2

[Event "XII Cracow ICC-A 2024"]
[Site "Krakow"]
[Date "2024.06.26"]
[Round "6.18"]
[White "Pyrig, Roman"]
[Black "Fus, Jakub"]
[Result "1/2-1/2"]
[ECO "D12"]
[WhiteElo "2260"]
[BlackElo "2455"]
[Annotator "TA"]
[PlyCount "70"]
[EventDate "2024.06.20"]
[EventType "swiss"]
[EventCountry "POL"]
[SourceTitle "playchess.com"]
[Source "ChessBase"]
[SourceQuality "1"]
[TimeControl "40/5400+30:1800+30"]

{[%evp 15,70,18,15,-26,-19,-20,-25,-30,-28,-33,-38,-48,-28,-38,-11,-14,-16,-20,-17,-14,-19,-17,-17,-20,0,0,0,-2,0,-7,0,0,5,0,0,0,10,8,23,-43,-31,-44,-4,-12,-20,-37,-37,-58,-43,-64,0,0,0,0,0,-18,0]} 1. d4 {[%emt 0:03:02]} Nf6 {[%emt 0:04:11]} 2. Nf3 {[%emt 0:00:50]} d5 {[%emt 0:00:19]} 3. e3 {[%emt 0:00:08]} Bf5 {[%emt 0:02:05]} 4. c4 {[%emt 0:02:32]} c6 {[%emt 0:00:06]} 5. Nc3 {[%emt 0:00:06]} e6 {[%emt 0:00:11]} 6. Bd3 {[%emt 0:00:45]} Bg6 {[%emt 0:00:32]} 7. O-O {[%emt 0:00:14]} Nbd7 {[%emt 0:00:19]} 8. Qe2 {[%emt 0:07:54]} Bb4 {[%emt 0:06:12]} 9. cxd5 {[%emt 0:00:15]} Bxd3 {[%emt 0:00:35]} 10. Qxd3 {[%emt 0:00:07] [#] Hoping for dxe6.} exd5 {[%emt 0:00:07]} 11. Nd2 {[%emt 0:00:59] Black has an edge.} O-O {[%emt 0:00:34]} 12. a3 {[%emt 0:00:17]} Bd6 {[%emt 0:02:13]} 13. e4 {[%emt 0:08:21]} dxe4 {[%emt 0:05:41]} 14. Ndxe4 {[%emt 0:00:11]} Qc7 {[%emt 0:10:43]} (14... Nxe4 $5 15. Qxe4 Re8 $15) 15. h3 {[%emt 0:02:13]} Nxe4 {[%emt 0:04:23]} 16. Nxe4 {[%emt 0:01:11]} Nb6 {[%emt 0:00:27]} 17. Ng5 {[%emt 0:03:11][%csl Gg5][%cal Rd3h7]} g6 {[%emt 0:00:24]} 18. Ne4 {[%emt 0:00:30]} Nd5 {[%emt 0:02:38]} 19. Nc3 {[%emt 0:05:00]} Qa5 {[%emt 0:02:11]} 20. Bd2 {[%emt 0:00:35]} Rfe8 {[%emt 0:00:31]} 21. b4 {[%emt 0:01:45]} Qb6 {[%emt 0:03:10]} 22. Rfe1 {[%emt 0:06:36]} Bf8 {[%emt 0:00:11]} 23. Nxd5 {[%emt 0:01:18]} cxd5 {[%emt 0:00:07]} 24. Re5 {[%emt 0:01:03]} Red8 {[%emt 0:01:28]} 25. Rae1 {[%emt 0:07:14]} Bg7 {[%emt 0:09:42] [#]} 26. Bg5 $1 {[%emt 0:00:38]} Bxe5 {[%emt 0:02:16]} (26... f6 {simplifies} 27. Re6 Rd6 28. Rxd6 Qxd6 29. Bd2 Qd7) 27. dxe5 {[%emt 0:03:35]} (27. Bxd8 $11 Bh2+ (27... Rxd8 28. Rxe5 Rc8 29. Rxd5 $18) (27... Qxd4 $2 {is the wrong capture.} 28. Qxd4 Bxd4 29. Re8+ Kg7 30. Bf6+ Kxf6 31. Rxa8 $18) 28. Kxh2 Rxd8 29. g3) 27... Re8 $15 {[%emt 0:01:06]} 28. Qd2 {[%emt 0:03:10][%cal Og5f6]} Rac8 {[%emt 0:02:22]} 29. Bf6 $1 {[%emt 0:00:51][%cal Od2h6] Qh6! would kill now.} Re6 {[%emt 0:00:04]} 30. Qxd5 {[%emt 0:02:40]} Qc6 {[%emt 0:01:04]} 31. Qd4 {[%emt 0:00:39][%cal Od4f4]} Qc3 {[%emt 0:04:30]} 32. Qe4 {[%emt 0:00:04]} Qd2 {[%emt 0:10:27]} (32... Rec6 $15 33. Re3 Qd2) 33. Re2 $1 $11 {[%emt 0:02:30] The position is equal.} Qd1+ {[%emt 0:00:10]} 34. Re1 {[%emt 0:01:45]} Qd2 {[%emt 0:06:12]} 35. Re2 $1 {[%emt 0:00:08]} Qd1+ {[%emt 0:12:26] Weighted Error Value: White=0.09 (flawless) /Black=0.08 (flawless) .  Mistake:       	White=1     	Black=1      Inaccurate:     	---       	Black=2      OK:         	White=8     	Black=12     Best:        	---       	Black=2      Strong:       	White=3     	---} 1/2-1/2

[Event "XII Cracow ICC-A 2024"]
[Site "Krakow"]
[Date "2024.06.26"]
[Round "6.19"]
[White "Licznerski, Lukasz"]
[Black "Jaskolka, Tomasz"]
[Result "1-0"]
[ECO "B85"]
[WhiteElo "2434"]
[BlackElo "2249"]
[Annotator "TA"]
[PlyCount "107"]
[EventDate "2024.06.20"]
[EventType "swiss"]
[EventCountry "POL"]
[SourceTitle "playchess.com"]
[Source "ChessBase"]
[SourceQuality "1"]
[TimeControl "40/5400+30:1800+30"]

{[%evp 29,107,8,34,0,23,0,14,0,0,0,27,3,22,31,40,47,35,16,8,6,14,0,0,-28,-15,-24,35,0,255,249,313,307,300,-33,305,284,383,382,381,380,757,751,737,719,1146,1112,1244,1254,1675,1439,29993,591,642,417,690,676,669,668,585,348,328,244,346,347,420,416,430,423,410,398,393,358,772,760,1207,1205,1137,1098,914,779]} 1. e4 {[%emt 0:02:15]} c5 {[%emt 0:00:08]} 2. Nf3 {[%emt 0:00:41]} e6 {[%emt 0:00:05]} 3. d4 {[%emt 0:00:04]} cxd4 {[%emt 0:00:04]} 4. Nxd4 {[%emt 0:00:06]} Nc6 {[%emt 0:00:14]} 5. Nc3 {[%emt 0:00:05]} Qc7 {[%emt 0:00:04]} 6. Be3 {[%emt 0:00:21]} a6 {[%emt 0:00:05]} 7. Be2 {[%emt 0:02:05]} Nf6 {[%emt 0:00:47]} 8. O-O {[%emt 0:00:12]} Be7 {[%emt 0:00:15]} 9. f4 {[%emt 0:00:13]} d6 {[%emt 0:00:06]} 10. Qe1 {[%emt 0:02:16]} O-O {[%emt 0:00:15]} 11. Qg3 {[%emt 0:00:12]} Nxd4 {[%emt 0:04:21]} 12. Bxd4 {[%emt 0:03:02]} b5 {[%emt 0:00:38]} 13. a3 {[%emt 0:00:11]} Bb7 {[%emt 0:00:19]} 14. Kh1 {[%emt 0:04:47]} Bc6 {[%emt 0:01:23]} 15. Rae1 {[%emt 0:00:53]} Rad8 {[%emt 0:01:03]} 16. Bd3 {[%emt 0:00:36]} Qd7 {[%emt 0:01:20]} 17. Nd1 {[%emt 0:01:24][%cal Bc3d1,Bd1f2,Bf2g4,Bg4f6][%mdl 32]} (17. Bb6 {is more complex.} Rde8 18. e5 dxe5 19. fxe5 Nd5 20. Nxd5 Qxd5 21. Rd1) 17... Nh5 {[%emt 0:02:24]} 18. Qg4 {[%emt 0:00:00] The position is equal.} Nf6 {[%emt 0:00:08]} 19. Qe2 {[%emt 0:00:00]} Ne8 {[%emt 0:20:19]} 20. Bc3 {[%emt 0:03:45]} Bh4 {[%emt 0:21:35]} 21. Nf2 {[%emt 0:00:16]} g6 {[%emt 0:00:20] Prevents Qh5} 22. Qg4 {[%emt 0:19:58]} Bf6 {[%emt 0:05:55]} 23. Bxf6 {[%emt 0:00:04]} Nxf6 {[%emt 0:00:03]} 24. Qh4 {[%emt 0:00:08]} Kg7 {[%emt 0:06:34]} 25. e5 {[%emt 0:01:43]} Ng8 {[%emt 0:00:41]} 26. Ng4 {[%emt 0:06:28]} Qe7 {[%emt 0:01:06] Against Nf6} 27. Qg3 {[%emt 0:02:22][%cal Of4f5]} (27. Qxe7 {simplifies} Nxe7 28. Nf6 h5 29. Kg1) 27... Qb7 {[%emt 0:14:04]} ({Black should play} 27... h5 $11 28. exd6 Qxd6) 28. Rf2 {[%emt 0:04:08]} h5 $2 {[%emt 0:05:39][%mdl 8192] [#]} (28... dxe5 $11 29. fxe5 Be4) 29. Nf6 $1 $18 {[%emt 0:08:17][%mdl 512]} Nxf6 {[%emt 0:02:02]} (29... Kh8 30. Qg5) 30. exf6+ {[%emt 0:00:04]} Kxf6 {[%emt 0:00:24] [#]} 31. Qg5+ $1 {[%emt 0:00:11]} Kg7 {[%emt 0:00:04] [#] Black cannot hold the game after this.} 32. Bxg6 $1 {[%emt 0:00:06][%mdl 512]} f6 {[%emt 0:07:54]} (32... fxg6 33. Rxe6) 33. Qxh5 {[%emt 0:01:37]} Rh8 {[%emt 0:00:20][%cal Bf8h8,Bh8h6,Bh6h3][%mdl 32] Prevents Qh7+.} 34. Qg4 {[%emt 0:00:04]} Kf8 {[%emt 0:00:16] Dodges Be8} (34... Rh6) 35. Qxe6 {[%emt 0:01:34]} Kg7 {[%emt 0:00:58]} 36. Qg4 {[%emt 0:00:29] Strongly threatening Rfe2.} Kf8 {[%emt 0:02:17]} 37. Rfe2 {[%emt 0:00:04] Hoping for Qf5.} Rh6 {[%emt 0:01:09]} 38. f5 {[%emt 0:00:53]} Qg7 {[%emt 0:01:45]} 39. Qg3 {[%emt 0:01:47][%cal Og3d6] Qxd6+! would kill now.} Qh8 {[%emt 0:01:34]} 40. Re7 {[%emt 0:00:03]} (40. Re8+ $142 Rxe8 41. Rxe8+ (41. Qxd6+ Kg8 42. Rxe8+ Bxe8 43. Qe6+ Kg7 44. Qe7+ Kg8 45. Qxe8+ Kg7 46. Qf7#) 41... Bxe8 42. Qxd6+ Kg8 43. Qe6+ (43. Bxe8 Qg7 $18) 43... Kg7 44. Qe7+ (44. Qxe8 $2 {perishes.} Rxh2+ 45. Kg1 Rh1+ 46. Kf2 Qh4+ 47. g3 Qd4+ 48. Qe3 Rf1+ 49. Kxf1 Qxe3 $19) 44... Kg8 45. Qxe8+ Kg7 46. Qf7#) 40... Rh3 {[%emt 0:00:30]} 41. Rf7+ {[%emt 0:34:59]} Kg8 {[%emt 0:30:06]} 42. Bh7+ {[%emt 0:00:06]} Kxf7 {[%emt 0:00:02]} 43. Qxh3 {[%emt 0:00:06] Threatens to win with Bg6+.} Kf8 {[%emt 0:02:02]} 44. Qh6+ {[%emt 0:03:12]} Qg7 {[%emt 0:00:05]} 45. Qxg7+ {[%emt 0:00:03]} Kxg7 {[%emt 0:00:03][%mdl 4096] Endgame. KRB-KRB} 46. Bg6 {[%emt 0:00:04]} a5 {[%emt 0:01:18]} 47. Re7+ {[%emt 0:00:07]} Kg8 {[%emt 0:00:03]} 48. h4 {[%emt 0:00:52][%cal Bh2h4,Bh4h5,Bh5h6][%mdl 32]} b4 {[%emt 0:00:03]} 49. axb4 {[%emt 0:00:04]} axb4 {[%emt 0:00:05]} 50. h5 {[%emt 0:00:35]} b3 $2 {[%emt 0:02:02]} (50... Rd7 51. Rxd7 Bxd7) 51. c3 {[%emt 0:00:19] White is clearly winning.} Kf8 {[%emt 0:00:00]} 52. Rf7+ {[%emt 0:00:00]} Kg8 {[%emt 0:00:00]} 53. h6 {[%emt 0:00:00]} d5 {[%emt 0:00:00]} 54. Rxf6 {[%emt 0:00:00] Weighted Error Value: White=0.26 (precise) /Black=0.71.  Loses game:     	---       	Black=2      Mistake:       	---       	Black=3      Inaccurate:     	White=2     	Black=5      OK:         	White=12    	Black=8      Strong:       	White=1     	---        Brilliant:      	White=2     	---} 1-0

[Event "XII Cracow ICC-A 2024"]
[Site "Krakow"]
[Date "2024.06.26"]
[Round "6.20"]
[White "Aarav Dengla"]
[Black "Szczurek, Krzysztof"]
[Result "1-0"]
[ECO "B90"]
[WhiteElo "2395"]
[BlackElo "2245"]
[Annotator "RC"]
[PlyCount "119"]
[EventDate "2024.06.20"]
[EventType "swiss"]
[EventCountry "POL"]
[SourceTitle "playchess.com"]
[Source "ChessBase"]
[SourceQuality "1"]
[TimeControl "40/5400+30:1800+30"]

1. e4 {[%emt 0:00:02]} c5 {[%emt 0:00:05]} 2. Nf3 {[%emt 0:00:06]} d6 {[%emt 0:00:06]} 3. d4 {[%emt 0:00:04]} cxd4 {[%emt 0:00:04]} 4. Nxd4 {[%emt 0:00:05]} Nf6 {[%emt 0:00:04]} 5. Nc3 {[%emt 0:00:04]} a6 {[%emt 0:00:05]} 6. h3 {[%emt 0:00:03]} g6 {[%emt 0:00:08]} 7. Be3 {[%emt 0:12:05]} Bg7 {[%emt 0:00:51]} 8. Qd2 {[%emt 0:00:40]} O-O {[%emt 0:00:20]} 9. Bh6 {[%emt 0:25:38]} b5 {[%emt 0:01:05]} 10. Bxg7 {[%emt 0:07:25]} Kxg7 {[%emt 0:00:26]} 11. O-O-O {[%emt 0:00:07]} Qa5 {[%emt 0:08:51]} 12. Nb3 {[%emt 0:03:36]} Qb6 {[%emt 0:01:34]} 13. Nd5 {[%emt 0:15:50]} Nxd5 {[%emt 0:02:05]} 14. exd5 {[%emt 0:00:06]} Nd7 {[%emt 0:05:52]} 15. g4 {[%emt 0:05:02]} Bb7 {[%emt 0:04:25]} 16. Bg2 {[%emt 0:01:15]} e5 {[%emt 0:03:39]} 17. Na5 {[%emt 0:14:19]} Rac8 {[%emt 0:03:01]} 18. h4 {[%emt 0:02:15]} h6 {[%emt 0:05:55]} 19. g5 {[%emt 0:03:33]} h5 {[%emt 0:01:34]} 20. Rhe1 {[%emt 0:00:42]} Ba8 {[%emt 0:04:27]} 21. Nc6 {[%emt 0:00:20]} f5 {[%emt 0:02:14]} 22. gxf6+ {[%emt 0:01:56]} Rxf6 {[%emt 0:00:16]} 23. Be4 {[%emt 0:02:29]} Qxf2 {[%emt 0:04:38]} 24. Qxf2 {[%emt 0:02:50]} Rxf2 {[%emt 0:00:08]} 25. Rg1 {[%emt 0:01:41]} Nf8 {[%emt 0:00:14]} 26. b3 {[%emt 0:00:18]} Rc7 {[%emt 0:14:26]} 27. Nd8 {[%emt 0:00:02]} Re7 {[%emt 0:00:52]} 28. Nc6 {[%emt 0:01:18]} Re8 {[%emt 0:00:18]} 29. Rdf1 {[%emt 0:00:27]} Rf4 {[%emt 0:01:55]} 30. Rxf4 {[%emt 0:00:09]} exf4 {[%emt 0:00:06]} 31. Bd3 {[%emt 0:00:16]} Kf6 {[%emt 0:10:56]} 32. Kd2 {[%emt 0:00:39]} Bb7 {[%emt 0:03:03]} 33. a4 {[%emt 0:00:55]} bxa4 {[%emt 0:00:31]} 34. bxa4 {[%emt 0:00:01]} Rc8 {[%emt 0:01:00]} 35. Be4 {[%emt 0:00:02]} Bxc6 {[%emt 0:01:03]} 36. dxc6 {[%emt 0:00:00]} Ke5 {[%emt 0:01:13]} 37. Re1 {[%emt 0:01:19]} Kf6 {[%emt 0:04:09]} 38. Rg1 {[%emt 0:00:15]} Ke5 {[%emt 0:02:52]} 39. Re1 {[%emt 0:00:44]} Kf6 {[%emt 0:01:49]} 40. Bd5 {[%emt 0:01:11]} f3 {[%emt 0:05:09]} 41. Re3 {[%emt 0:05:32]} f2 {[%emt 0:10:26]} 42. Ke2 {[%emt 0:01:14]} g5 {[%emt 0:00:21]} 43. hxg5+ {[%emt 0:08:11]} Kxg5 {[%emt 0:00:17]} 44. Kxf2 {[%emt 0:01:45]} Ng6 {[%emt 0:08:26]} 45. Re6 {[%emt 0:02:14]} Nf4 {[%emt 0:01:05]} 46. Rxd6 {[%emt 0:00:10]} Nxd5 {[%emt 0:00:05]} 47. Rxd5+ {[%emt 0:00:03]} Kf4 {[%emt 0:00:08]} 48. Rc5 {[%emt 0:00:32]} Ke4 {[%emt 0:02:43]} 49. c3 {[%emt 0:00:23]} Kf4 {[%emt 0:07:33]} 50. c7 {[%emt 0:03:36]} a5 {[%emt 0:01:34]} 51. Kg2 {[%emt 0:02:19]} Kg4 {[%emt 0:00:10]} 52. Kh2 {[%emt 0:02:21]} Kh4 {[%emt 0:01:54]} 53. Kg2 {[%emt 0:00:15]} Kg4 {[%emt 0:00:05]} 54. Kh2 {[%emt 0:00:01]} Kh4 {[%emt 0:00:10]} 55. Rc6 {[%emt 0:00:47]} Kg4 {[%emt 0:00:11]} 56. Rg6+ {[%emt 0:01:10]} Kf5 {[%emt 0:02:11]} 57. Rc6 {[%emt 0:00:03]} Kg4 {[%emt 0:01:41]} 58. Kg2 {[%emt 0:02:15]} Kf4 {[%emt 0:02:51]} 59. Kh3 {[%emt 0:00:51]} h4 {[%emt 0:00:17]} 60. Rc5 {[%emt 0:00:23]} 1-0